fUST/lending_fUST_20250101
["ID","MTS","AMOUNT","RATE_DAILY","PERIOD"]
[347297651,1735666235842,-500.0,0.00019178,2]
[347297652,1735666235851,-951.02,0.00019178,2]
[347297653,1735666235860,-1095.08,0.00019178,2]
[347297654,1735666235871,-1736.49,0.00019178,2]
[347297655,1735666235880,-1115.38,0.00019178,2]
[347297656,1735666235889,-500.0,0.00019178,2]
[347297657,1735666235898,-919.22,0.00019178,2]
[347297658,1735666235907,-500.0,0.00019178,2]
[347297659,1735666235917,-500.0,0.00019178,2]
[347297660,1735666235928,-500.0,0.00019178,2]
[347297661,1735666235937,-500.0,0.00019178,2]
[347297662,1735666235947,-500.0,0.00019178,2]
[347297663,1735666235956,-500.0,0.00019178,2]
[347297664,1735666235965,-500.0,0.00019178,2]
[347297665,1735666235974,-500.0,0.00019178,2]
[347297666,1735666235984,-500.0,0.00019178,2]
[347297667,1735666235993,-500.0,0.00019178,2]
[347297668,1735666236003,-500.0,0.00019178,2]
[347297669,1735666236013,-500.0,0.00019178,2]
[347297670,1735666236022,-500.0,0.00019178,2]
[347297671,1735666236032,-500.0,0.00019178,2]
[347297672,1735666236042,-867.3,0.00019178,2]
[347297673,1735666236052,-500.0,0.00019178,2]
[347297674,1735666236062,-503.39479889,0.00019178,2]
[347297675,1735666236072,-730.85,0.00019178,2]
[347297676,1735666236082,-1090.64,0.00019178,2]
[347297677,1735666236091,-500.0,0.00019178,2]
[347297678,1735666236101,-500.0,0.00019178,2]
[347297679,1735666236110,-500.0,0.00019178,2]
[347297680,1735666236119,-500.0,0.00019178,2]
[347297681,1735666236129,-1042.94,0.00019178,2]
[347297682,1735666236138,-500.0,0.00019178,2]
[347297683,1735666236148,-7097.47,0.00019178,2]
[347297684,1735666236157,-500.0,0.00019178,2]
[347297685,1735666236168,-500.0,0.00019178,2]
[347297686,1735666236177,-500.0,0.00019178,2]
[347297687,1735666236186,-500.0,0.00019178,2]
[347297688,1735666236195,-500.0,0.00019178,2]
[347297689,1735666236204,-309.21,0.00019178,2]
[347297690,1735666236213,-500.0,0.00019178,2]
[347297691,1735666236223,-500.0,0.00019178,2]
[347297692,1735666236232,-3568.63,0.00019178,2]
[347297693,1735666236242,-603.26,0.00019178,2]
[347297694,1735666236251,-500.0,0.00019178,2]
[347297695,1735666236260,-500.0,0.00019178,2]
[347297696,1735666236269,-500.0,0.00019178,2]
[347297697,1735666236278,-500.0,0.00019178,2]
[347297698,1735666236287,-967.62,0.00019178,2]
[347297699,1735666236297,-873.67,0.00019178,2]
[347297700,1735666236306,-500.0,0.00019178,2]
[347297701,1735666236315,-500.0,0.00019178,2]
[347297702,1735666236324,-500.0,0.00019178,2]
[347297703,1735666236334,-500.0,0.00019178,2]
[347297704,1735666236343,-519.47992898,0.00019178,2]
[347297705,1735666236352,-784.39,0.00019178,2]
[347297706,1735666236362,-9823.18,0.00019178,2]
[347297707,1735666236371,-500.0,0.00019178,2]
[347297708,1735666236380,-5929.55,0.00019178,2]
[347297709,1735666236389,-500.0,0.00019178,2]
[347297710,1735666236398,-525.06,0.00019178,2]
[347297711,1735666236407,-500.0,0.00019178,2]
[347297712,1735666236416,-500.0,0.00019178,2]
[347297713,1735666236428,-500.0,0.00019178,2]
[347297714,1735666236437,-500.0,0.00019178,2]
[347297715,1735666236447,-500.0,0.00019178,2]
[347297716,1735666236456,-929.94,0.00019178,2]
[347297717,1735666236465,-500.0,0.00019178,2]
[347297718,1735666236474,-1732.56,0.00019178,2]
[347297719,1735666236484,-1150.4,0.00019178,2]
[347297720,1735666236493,-500.0,0.00019178,2]
[347297721,1735666236503,-500.0,0.00019178,2]
[347297722,1735666236512,-47149.36,0.00019178,2]
[347297723,1735666236520,-1700.25906615,0.00019178,2]
[347297724,1735666236542,-496.34093385,0.00019178,2]
[347297725,1735666236551,-500.0,0.00019178,2]
[347297726,1735666236561,-500.0,0.00019178,2]
[347297727,1735666236570,-500.0,0.00019178,2]
[347297728,1735666236579,-500.0,0.00019178,2]
[347297729,1735666236588,-500.0,0.00019178,2]
[347297730,1735666236597,-421.56586615,0.00019178,2]
[347297744,1735666238192,-145.25413385,0.00019178,2]
[347297745,1735666238202,-9470.57,0.00019178,2]
[347297746,1735666238211,-500.0,0.00019178,2]
[347297747,1735666238221,-1205.69,0.00019178,2]
[347297748,1735666238230,-2111.31,0.00019178,2]
[347297749,1735666238239,-500.0,0.00019178,2]
[347297750,1735666238249,-1129.43,0.00019178,2]
[347297751,1735666238258,-1697.47,0.00019178,2]
[347297752,1735666238267,-500.0,0.00019178,2]
[347297753,1735666238276,-257.79901667,0.00019178,2]
[347297754,1735666238285,-500.0,0.00019178,2]
[347297755,1735666238294,-4278.76,0.00019178,2]
[347297756,1735666238303,-500.0,0.00019178,2]
[347297757,1735666238312,-500.0,0.00019178,2]
[347297758,1735666238321,-956.98,0.00019178,2]
[347297759,1735666238331,-642.18,0.00019178,2]
[347297760,1735666238340,-500.0,0.00019178,2]
[347297761,1735666238349,-500.0,0.00019178,2]
[347297762,1735666238358,-500.0,0.00019178,2]
[347297763,1735666238367,-505.17298432,0.00019178,2]
[347297764,1735666238376,-500.0,0.00019178,2]
[347297765,1735666238385,-1256.2,0.00019178,2]
[347297766,1735666238394,-500.0,0.00019178,2]
[347297767,1735666238403,-500.0,0.00019178,2]
[347297768,1735666238412,-507.29,0.00019178,2]
[347297769,1735666238422,-500.0,0.00019178,2]
[347297770,1735666238432,-500.0,0.00019178,2]
[347297771,1735666238441,-500.0,0.00019178,2]
[347297772,1735666238449,-500.0,0.00019178,2]
[347297773,1735666238458,-500.0,0.00019178,2]
[347297774,1735666238467,-3334.47,0.00019178,2]
[347297775,1735666238476,-3301.72,0.00019178,2]
[347297776,1735666238485,-2278.49,0.00019178,2]
[347297777,1735666238494,-500.0,0.00019178,2]
[347297778,1735666238503,-500.0,0.00019178,2]
[347297779,1735666238512,-500.0,0.00019178,2]
[347297780,1735666238522,-200.32926924,0.00019178,2]
[347297781,1735666238531,-500.0,0.00019178,2]
[347297782,1735666238541,-500.0,0.00019178,2]
[347297784,1735666238550,-739.65,0.00019178,2]
[347297785,1735666238559,-522.87,0.00019178,2]
[347297786,1735666238569,-500.0,0.00019178,2]
[347297787,1735666238578,-1525.91,0.00019178,2]
[347297789,1735666238587,-593.43,0.00019178,2]
[347297791,1735666238596,-500.0,0.00019178,2]
[347297793,1735666238606,-871.78,0.00019178,2]
[347297795,1735666238615,-1951.73,0.00019178,2]
[347297797,1735666238624,-500.0,0.00019178,2]
[347297799,1735666238633,-1167.79,0.00019178,2]
[347297801,1735666238643,-500.0,0.00019178,2]
[347297803,1735666238654,-500.0,0.00019178,2]
[347297805,1735666238663,-150.0,0.00019178,2]
[347297807,1735666238674,-164.984708,0.00019178,2]
[347297809,1735666238683,-2118.59997659,0.00019215,2]
[347297811,1735666238692,-5672.52233663,0.00019215,2]
[347297813,1735666238701,-152.0,0.0001922,2]
[347297815,1735666238710,-558.06515208,0.00019257,2]
[347297817,1735666238719,-203.04681998,0.00019287,2]
[347297819,1735666238728,-2118.59997659,0.00019352,2]
[347297821,1735666238738,-558.06515208,0.00019436,2]
[347297823,1735666238747,-191.75313226,0.00019451,2]
[347297825,1735666238756,-204.04746096,0.00019451,2]
[347297827,1735666238766,-600.52635008,0.00019451,2]
[347297829,1735666238776,-500.0,0.00019451,3]
[347297831,1735666238785,-484.85192905,0.00019451,3]
[347297833,1735666238796,-500.0,0.00019451,3]
[347297835,1735666238814,-500.0,0.00019451,3]
[347297837,1735666238825,-500.0,0.00019451,3]
[347297839,1735666238834,-171.08,0.00019451,3]
[347297841,1735666238844,-500.0,0.00019452,3]
[347297843,1735666238853,-500.0,0.00019452,3]
[347297845,1735666238863,-500.0,0.00019452,3]
[347297847,1735666238871,-500.0,0.00019452,3]
[347297849,1735666238881,-500.0,0.00019452,3]
[347297851,1735666238890,-500.0,0.00019452,3]
[347297853,1735666238899,-500.0,0.00019452,3]
[347297855,1735666238908,-500.0,0.00019452,3]
[347297857,1735666238917,-500.0,0.00019452,3]
[347297859,1735666238927,-500.0,0.00019452,3]
[347297860,1735666238937,-640.84134407,0.00019452,3]
[347297862,1735666238946,-503.12171205,0.00019452,3]
[347297865,1735666238955,-500.0,0.00019452,3]
[347297866,1735666238965,-500.0,0.00019452,2]
[347297869,1735666238974,-500.0,0.00019452,3]
[347297870,1735666238983,-500.0,0.00019452,3]
[347297872,1735666238992,-522.9067441,0.00019452,3]
[347297874,1735666239001,-500.0,0.00019452,3]
[347297876,1735666239010,-508.0383041,0.00019452,3]
[347297878,1735666239019,-500.0,0.00019452,3]
[347297880,1735666239028,-500.0,0.00019452,3]
[347297882,1735666239037,-500.0,0.00019452,3]
[347297884,1735666239046,-653.94,0.00019452,3]
[347297886,1735666239055,-500.0,0.00019452,3]
[347297888,1735666239064,-500.0,0.00019452,3]
[347297890,1735666239074,-500.0,0.00019452,3]
[347297903,1735666239185,-500.0,0.00019452,3]
[347297905,1735666239195,-500.0,0.00019452,3]
[347297907,1735666239204,-542.51371461,0.00019452,3]
[347297909,1735666239213,-786.21,0.00019452,3]
[347297911,1735666239223,-500.0,0.00019452,3]
[347297913,1735666239232,-695.03,0.00019452,3]
[347297915,1735666239242,-480.93022324,0.00019452,3]
[347297917,1735666239251,-500.0,0.00019452,3]
[347297919,1735666239260,-918.13,0.00019452,3]
[347297921,1735666239270,-500.0,0.00019452,3]
[347297923,1735666239279,-500.0,0.00019452,3]
[347297925,1735666239289,-503.08783653,0.00019452,3]
[347297927,1735666239298,-502.48432463,0.00019452,3]
[347297929,1735666239307,-679.9,0.00019452,3]
[347297931,1735666239317,-500.0,0.00019452,3]
[347297933,1735666239326,-500.0,0.00019452,3]
[347297935,1735666239335,-500.0,0.00019452,3]
[347297937,1735666239345,-601.5,0.00019452,3]
[347297939,1735666239356,-920.01,0.00019452,3]
[347297940,1735666239365,-500.0,0.00019452,3]
[347297941,1735666239375,-500.0,0.00019452,3]
[347297943,1735666239384,-500.0,0.00019452,3]
[347297944,1735666239393,-500.0,0.00019452,3]
[347297945,1735666239402,-500.0,0.00019452,3]
[347297946,1735666239411,-500.0,0.00019452,3]
[347297947,1735666239421,-500.0,0.00019452,3]
[347297948,1735666239431,-153.1686384,0.00019452,3]
[347297949,1735666239440,-502.63721505,0.00019452,3]
[347297950,1735666239449,-500.0,0.00019452,3]
[347297951,1735666239459,-500.0,0.00019452,3]
[347297952,1735666239468,-520.9,0.00019452,3]
[347297953,1735666239477,-500.0,0.00019452,3]
[347297954,1735666239486,-500.0,0.00019452,3]
[347297955,1735666239495,-513.80924582,0.00019452,3]
[347297956,1735666239504,-166.23710047,0.00019452,3]
[347297957,1735666239514,-500.0,0.00019452,3]
[347297958,1735666239523,-500.0,0.00019452,3]
[347297959,1735666239532,-500.0,0.00019452,3]
[347297960,1735666239542,-500.0,0.00019452,3]
[347297961,1735666239551,-500.0,0.00019452,3]
[347297962,1735666239561,-1456.22,0.00019452,3]
[347297963,1735666239570,-500.0,0.00019452,3]
[347297964,1735666239578,-500.0,0.00019452,3]
[347297965,1735666239588,-500.0,0.00019452,3]
[347297966,1735666239598,-976.99,0.00019452,3]
[347297967,1735666239608,-511.24,0.00019452,3]
[347297968,1735666239617,-537.61,0.00019452,2]
[347297969,1735666239627,-500.0,0.00019452,3]
[347297970,1735666239637,-500.0,0.00019452,3]
[347297971,1735666239646,-500.0,0.00019452,3]
[347297972,1735666239655,-500.0,0.00019452,3]
[347297973,1735666239665,-500.0,0.00019452,3]
[347297974,1735666239675,-518.05,0.00019452,3]
[347297975,1735666239684,-1091.73,0.00019452,3]
[347297976,1735666239694,-500.0,0.00019452,3]
[347297977,1735666239704,-500.0,0.00019452,3]
[347297978,1735666239715,-500.0,0.00019452,3]
[347297979,1735666239724,-500.0,0.00019452,3]
[347297980,1735666239735,-500.0,0.00019452,3]
[347297981,1735666239744,-500.0,0.00019452,3]
[347297982,1735666239754,-904.99,0.00019452,3]
[347297983,1735666239763,-500.0,0.00019452,3]
[347297984,1735666239773,-539.61007778,0.00019452,3]
[347297985,1735666239782,-500.0,0.00019452,3]
[347297986,1735666239792,-500.0,0.00019452,3]
[347297987,1735666239806,-637.7871382,0.00019452,3]
[347297988,1735666239815,-507.94560489,0.00019452,3]
[347297989,1735666239824,-591.71422377,0.00019452,3]
[347297990,1735666239833,-500.0,0.00019452,3]
[347297991,1735666239843,-500.0,0.00019452,3]
[347297992,1735666239853,-500.0,0.00019452,3]
[347297993,1735666239863,-500.0,0.00019452,3]
[347297994,1735666239875,-5651.19,0.00019452,3]
[347297995,1735666239884,-638.61,0.00019452,3]
[347297996,1735666239893,-500.0,0.00019452,3]
[347297997,1735666239902,-500.0,0.00019452,3]
[347297999,1735666239911,-500.0,0.00019452,3]
[347298000,1735666239920,-500.0,0.00019452,3]
[347298001,1735666239929,-500.0,0.00019452,3]
[347298002,1735666239938,-737.75,0.00019452,3]
[347298003,1735666239947,-500.0,0.00019452,3]
[347298004,1735666239957,-571.64537705,0.00019452,3]
[347298005,1735666239966,-500.0,0.00019452,3]
[347298006,1735666239975,-500.0,0.00019452,3]
[347298007,1735666239985,-535.57,0.00019452,3]
[347298008,1735666239993,-500.0,0.00019452,3]
[347298009,1735666240003,-500.0,0.00019452,3]
[347298010,1735666240012,-500.0,0.00019452,3]
[347298011,1735666240021,-506.22722155,0.00019452,3]
[347298012,1735666240030,-1096.18,0.00019452,3]
[347298013,1735666240039,-500.0,0.00019452,3]
[347298014,1735666240048,-500.0,0.00019452,3]
[347298015,1735666240058,-500.0,0.00019452,3]
[347298016,1735666240067,-500.0,0.00019452,3]
[347298017,1735666240076,-500.0,0.00019452,3]
[347298018,1735666240085,-665.02,0.00019452,3]
[347298019,1735666240095,-503.72974484,0.00019452,3]
[347298020,1735666240104,-930.53,0.00019452,3]
[347298021,1735666240114,-500.0,0.00019452,3]
[347298022,1735666240123,-489.06230314,0.00019452,3]
[347298023,1735666240132,-500.0,0.00019452,3]
[347298024,1735666240141,-1277.14,0.00019452,3]
[347298025,1735666240150,-500.0,0.00019452,3]
[347298026,1735666240159,-500.0,0.00019452,3]
[347298027,1735666240169,-851.42,0.00019452,3]
[347298028,1735666240179,-500.0,0.00019452,3]
[347298029,1735666240188,-500.0,0.00019452,3]
[347298030,1735666240198,-500.0,0.00019452,3]
[347298031,1735666240207,-1236.09,0.00019452,3]
[347298032,1735666240217,-500.0,0.00019452,3]
[347298033,1735666240226,-875.74,0.00019452,3]
[347298034,1735666240236,-500.0,0.00019452,3]
[347298035,1735666240246,-500.0,0.00019452,3]
[347298036,1735666240255,-500.0,0.00019452,3]
[347298037,1735666240264,-500.0,0.00019452,3]
[347298038,1735666240273,-500.0,0.00019452,3]
[347298039,1735666240284,-500.0,0.00019452,3]
[347298040,1735666240293,-500.0,0.00019452,3]
[347298041,1735666240302,-500.0,0.00019452,3]
[347298042,1735666240312,-500.0,0.00019452,3]
[347298043,1735666240321,-188.0,0.00019452,2]
[347298044,1735666240331,-689.33,0.00019452,3]
[347298045,1735666240340,-1686.23,0.00019452,3]
[347298046,1735666240349,-500.0,0.00019452,3]
[347298047,1735666240358,-500.0,0.00019452,3]
[347298048,1735666240367,-1302.95,0.00019452,3]
[347298049,1735666240376,-500.0,0.00019452,3]
[347298050,1735666240385,-500.0,0.00019452,3]
[347298051,1735666240394,-500.0,0.00019452,3]
[347298052,1735666240404,-500.0,0.00019452,3]
[347298053,1735666240414,-500.0,0.00019452,3]
[347298054,1735666240423,-500.0,0.00019452,3]
[347298055,1735666240432,-1568.6,0.00019452,3]
[347298056,1735666240441,-307.47656864,0.00019452,3]
[347298057,1735666240452,-310.74447481,0.00019452,3]
[347298058,1735666240461,-500.0,0.00019452,3]
[347298059,1735666240471,-500.0,0.00019452,3]
[347298060,1735666240482,-473.91238707,0.00019452,3]
[347298061,1735666240491,-500.0,0.00019452,3]
[347298062,1735666240500,-500.0,0.00019452,3]
[347298063,1735666240509,-500.0,0.00019452,3]
[347298064,1735666240518,-923.13,0.00019452,3]
[347298065,1735666240527,-877.42,0.00019452,3]
[347298066,1735666240536,-513.48,0.00019452,3]
[347298067,1735666240546,-625.22,0.00019452,3]
[347298068,1735666240555,-500.0,0.00019452,3]
[347298069,1735666240564,-500.0,0.00019452,3]
[347298070,1735666240573,-966.79,0.00019452,3]
[347298071,1735666240583,-553.41,0.00019452,3]
[347298072,1735666240592,-500.0,0.00019452,3]
[347298073,1735666240601,-991.1,0.00019452,3]
[347298074,1735666240611,-500.0,0.00019452,3]
[347298075,1735666240620,-500.0,0.00019452,3]
[347298076,1735666240630,-951.02,0.00019452,3]
[347298077,1735666240639,-1095.08,0.00019452,3]
[347298078,1735666240648,-1115.38,0.00019452,3]
[347298079,1735666240658,-500.0,0.00019452,3]
[347298080,1735666240667,-919.22,0.00019452,3]
[347298081,1735666240681,-500.0,0.00019452,3]
[347298082,1735666240689,-867.3,0.00019452,3]
[347298083,1735666240699,-500.0,0.00019452,3]
[347298084,1735666240707,-730.85,0.00019452,3]
[347298086,1735666240716,-1090.64,0.00019452,3]
[347298087,1735666240726,-500.0,0.00019452,3]
[347298088,1735666240735,-500.0,0.00019452,3]
[347298089,1735666240743,-500.0,0.00019452,3]
[347298090,1735666240753,-1042.94,0.00019452,3]
[347298091,1735666240762,-500.0,0.00019452,3]
[347298092,1735666240771,-500.0,0.00019452,2]
[347298093,1735666240780,-7097.47,0.00019452,3]
[347298094,1735666240789,-500.0,0.00019452,3]
[347298095,1735666240802,-500.0,0.00019452,3]
[347298096,1735666240811,-500.0,0.00019452,3]
[347298097,1735666240821,-500.0,0.00019452,3]
[347298098,1735666240830,-3568.63,0.00019452,3]
[347298099,1735666240839,-603.26,0.00019452,3]
[347298100,1735666240850,-500.0,0.00019452,3]
[347298101,1735666240860,-224.48763208,0.00019452,3]
[347298102,1735666240870,-500.0,0.00019452,3]
[347298103,1735666240880,-967.62,0.00019452,3]
[347298104,1735666240890,-873.67,0.00019452,3]
[347298105,1735666240899,-500.0,0.00019452,3]
[347298106,1735666240908,-500.0,0.00019452,3]
[347298107,1735666240917,-500.0,0.00019452,3]
[347298108,1735666240929,-500.0,0.00019452,3]
[347298109,1735666240938,-784.39,0.00019452,3]
[347298110,1735666240947,-9823.18,0.00019452,3]
[347298111,1735666240956,-5929.55,0.00019452,3]
[347298113,1735666240966,-525.06,0.00019452,3]
[347298114,1735666240975,-500.0,0.00019452,3]
[347298115,1735666240984,-500.0,0.00019452,3]
[347298116,1735666240993,-500.0,0.00019452,3]
[347298117,1735666241002,-929.94,0.00019452,3]
[347298118,1735666241011,-500.0,0.00019452,3]
[347298120,1735666241021,-1732.56,0.00019452,3]
[347298121,1735666241030,-1150.4,0.00019452,3]
[347298122,1735666241040,-289.11429035,0.00019452,3]
[347298123,1735666241049,-500.0,0.00019452,3]
[347298124,1735666241058,-47149.36,0.00019452,3]
[347298125,1735666241067,-2196.6,0.00019452,3]
[347298126,1735666241077,-507.69576642,0.00019452,3]
[347298127,1735666241086,-500.0,0.00019452,3]
[347298128,1735666241096,-500.0,0.00019452,3]
[347298130,1735666241105,-566.82,0.00019452,3]
[347298131,1735666241114,-500.0,0.00019452,3]
[347298133,1735666241124,-1205.69,0.00019452,3]
[347298134,1735666241133,-2111.31,0.00019452,3]
[347298135,1735666241142,-1129.43,0.00019452,3]
[347298136,1735666241151,-9470.57,0.00019452,3]
[347298137,1735666241161,-1697.47,0.00019452,3]
[347298138,1735666241169,-505.31059276,0.00019452,3]
[347298139,1735666241181,-500.0,0.00019452,3]
[347298140,1735666241190,-4278.76,0.00019452,3]
[347298141,1735666241200,-500.0,0.00019452,3]
[347298142,1735666241209,-956.98,0.00019452,3]
[347298143,1735666241218,-642.18,0.00019452,3]
[347298144,1735666241227,-500.0,0.00019452,3]
[347298145,1735666241236,-500.0,0.00019452,3]
[347298146,1735666241245,-500.0,0.00019452,3]
[347298147,1735666241254,-1256.2,0.00019452,3]
[347298148,1735666241263,-500.0,0.00019452,3]
[347298149,1735666241272,-500.0,0.00019452,3]
[347298150,1735666241281,-507.29,0.00019452,3]
[347298151,1735666241290,-500.0,0.00019452,3]
[347298152,1735666241300,-500.0,0.00019452,3]
[347298153,1735666241309,-500.0,0.00019452,3]
[347298154,1735666241318,-500.0,0.00019452,3]
[347298155,1735666241328,-3334.47,0.00019452,3]
[347298156,1735666241337,-3301.72,0.00019452,3]
[347298157,1735666241346,-2278.49,0.00019452,3]
[347298158,1735666241450,-500.0,0.00019452,3]
[347298159,1735666241459,-500.0,0.00019452,3]
[347298160,1735666241468,-500.0,0.00019452,3]
[347298161,1735666241477,-739.65,0.00019452,3]
[347298162,1735666241487,-522.87,0.00019452,3]
[347298163,1735666241496,-500.0,0.00019452,3]
[347298164,1735666241506,-1525.91,0.00019452,3]
[347298165,1735666241515,-593.43,0.00019452,3]
[347298166,1735666241523,-500.0,0.00019452,3]
[347298167,1735666241533,-871.78,0.00019452,3]
[347298168,1735666241542,-1951.73,0.00019452,3]
[347298169,1735666241551,-1167.79,0.00019452,3]
[347298170,1735666241560,-500.0,0.00019452,3]
[347298171,1735666241570,-500.0,0.00019473,2]
[347298172,1735666241579,-2118.59997659,0.00019489,2]
[347298173,1735666241588,-558.06515208,0.00019614,2]
[347298174,1735666241597,-5672.52233664,0.0001962,2]
[347298175,1735666241607,-2118.59997659,0.00019626,2]
[347298176,1735666241616,-192.0,0.00019652,2]
[347298177,1735666241625,-704.9107508,0.00019671,2]
[347298178,1735666241634,-1000.0,0.00019721,2]
[347298179,1735666241644,-15193.51622775,0.00019726,2]
[347298180,1735666241653,-147282.52599327,0.00019726,2]
[347298181,1735666241662,-500.0,0.00019726,3]
[347298182,1735666241671,-500.0,0.00019726,3]
[347298183,1735666241682,-500.0,0.00019726,3]
[347298184,1735666241691,-500.0,0.00019726,3]
[347298185,1735666241699,-500.0,0.00019726,3]
[347298186,1735666241708,-500.0,0.00019726,3]
[347298187,1735666241717,-500.0,0.00019726,3]
[347298188,1735666241726,-500.0,0.00019726,3]
[347298189,1735666241735,-500.0,0.00019726,3]
[347298190,1735666241744,-500.0,0.00019726,3]
[347298191,1735666241753,-500.0,0.00019726,2]
[347298192,1735666241762,-500.0,0.00019726,3]
[347298193,1735666241771,-500.0,0.00019726,3]
[347298194,1735666241781,-500.0,0.00019726,3]
[347298195,1735666241791,-500.0,0.00019726,3]
[347298196,1735666241804,-500.0,0.00019726,3]
[347298197,1735666241814,-653.94,0.00019726,3]
[347298198,1735666241822,-500.0,0.00019726,3]
[347298199,1735666241832,-569.88788877,0.00019726,3]
[347298200,1735666241842,-500.0,0.00019726,3]
[347298201,1735666241852,-786.21,0.00019726,3]
[347298202,1735666241861,-503.17145217,0.00019726,3]
[347298203,1735666241871,-695.03,0.00019726,3]
[347298204,1735666241880,-918.13,0.00019726,3]
[347298205,1735666241890,-507.90531955,0.00019726,3]
[347298206,1735666241899,-679.9,0.00019726,3]
[347298207,1735666241908,-500.0,0.00019726,3]
[347298208,1735666241917,-500.0,0.00019726,3]
[347298209,1735666241927,-601.5,0.00019726,3]
[347298210,1735666241936,-920.01,0.00019726,3]
[347298211,1735666241946,-504.84278697,0.00019726,3]
[347298212,1735666241955,-500.0,0.00019726,3]
[347298213,1735666241964,-500.0,0.00019726,3]
[347298214,1735666241974,-570.70236481,0.00019726,3]
[347298215,1735666241984,-502.99872529,0.00019726,3]
[347298216,1735666241994,-500.0,0.00019726,3]
[347298217,1735666242003,-520.9,0.00019726,3]
[347298218,1735666242012,-484.53775885,0.00019726,3]
[347298219,1735666242021,-500.0,0.00019726,3]
[347298220,1735666242030,-500.0,0.00019726,3]
[347298221,1735666242040,-500.0,0.00019726,3]
[347298222,1735666242049,-500.0,0.00019726,3]
[347298223,1735666242058,-1456.22,0.00019726,3]
[347298224,1735666242068,-500.0,0.00019726,3]
[347298225,1735666242077,-500.0,0.00019726,3]
[347298226,1735666242088,-500.0,0.00019726,3]
[347298227,1735666242098,-976.99,0.00019726,3]
[347298228,1735666242107,-511.24,0.00019726,3]
[347298229,1735666242116,-537.61,0.00019726,2]
[347298230,1735666242127,-500.0,0.00019726,3]
[347298231,1735666242136,-500.0,0.00019726,3]
[347298232,1735666242146,-458.63960152,0.00019726,3]
[347298233,1735666242155,-500.0,0.00019726,3]
[347298234,1735666242164,-518.05,0.00019726,3]
[347298235,1735666242175,-1091.73,0.00019726,3]
[347298236,1735666242185,-500.0,0.00019726,3]
[347298237,1735666242197,-500.0,0.00019726,3]
[347298238,1735666242206,-500.0,0.00019726,3]
[347298239,1735666242216,-500.0,0.00019726,3]
[347298240,1735666242225,-500.0,0.00019726,3]
[347298241,1735666242235,-500.0,0.00019726,3]
[347298242,1735666242244,-904.99,0.00019726,3]
[347298243,1735666242254,-500.0,0.00019726,3]
[347298244,1735666242263,-408.95633005,0.00019726,3]
[347298245,1735666242272,-500.0,0.00019726,3]
[347298246,1735666242282,-500.0,0.00019726,3]
[347298247,1735666242291,-500.0,0.00019726,3]
[347298248,1735666242301,-500.0,0.00019726,3]
[347298249,1735666242310,-5651.19,0.00019726,3]
[347298250,1735666242320,-638.61,0.00019726,3]
[347298251,1735666242329,-500.0,0.00019726,3]
[347298252,1735666242337,-644.5,0.00019726,3]